Cogmind - Beta 17.1 @@@ ROGUE MODE // 2026.08.25 @ 18:33:26 Player: TheSkyeDoctor Result: Destroyed by G-47 Trooper with Particle Gun Performance ------------- Evolutions (0) 0 Regions Visited (1) 200 Robots Destroyed (15) 75 Value Destroyed (255) 255 Prototype IDs (0) 0 Alien Tech Used (0) 0 Bonus (0) 0 TOTAL SCORE: 530 Bonus ------- None Cogmind --------- Core Integrity 0/250 Matter 260/300 Energy 90/100 System Corruption 3% Temperature Cool (57) Movement Core (200) Ox3 Location -10/Materials Parts ------- > --- POWER (1) -------- (None) > --- PROPULSION (2) --- (None) > --- UTILITY (2) ------ Small Storage Unit > --- WEAPON (2) ------- Medium Laser Grenade Launcher > --- INVENTORY (8) ---- Light Ion Engine Light Treads Light Treads Wheel Wheel Improved Terrain Scanner Assault Rifle Peak State ------------ > --- POWER ------------ Ion Engine > --- PROPULSION ------- Wheel Wheel > --- UTILITY ---------- Small Storage Unit Seismic Detector > --- WEAPON ----------- Medium Laser Assault Rifle > --- INVENTORY -------- Light Ion Engine Light Treads Light Treads Wheel Wheel Assault Rifle [Rating: 7] Favorites ----------- Power Ion Engine Engine Ion Engine Propulsion Wheel Wheel Wheel Utility Small Storage Unit Device Seismic Detector Storage Small Storage Unit Weapon Medium Laser Energy Gun Medium Laser Ballistic Gun Assault Rifle Launcher Grenade Launcher Build | -11 -10 ------- Run | Yrd Mat Slots Evolved . | . . Power . | . . Propulsion . | . . Utility . | . . Weapon . | . . Parts Attached 10 | 9 1 Power 2 | 2 . Engine 2 | 2 . Core . | . . Reactor . | . . Propulsion 3 | 3 . Treads . | . . Leg . | . . Wheel 3 | 3 . Hover . | . . Flight . | . . Utility 2 | 2 . Device 1 | 1 . Storage 1 | 1 . Processor . | . . Hackware . | . . Protection . | . . Artifact . | . . Weapon 3 | 2 1 Energy Gun 1 | 1 . Energy Cannon . | . . Ballistic Gun 1 | 1 . Ballistic Cannon . | . . Launcher 1 | . 1 Special Weapon . | . . Impact Weapon . | . . Slashing Weapon . | . . Piercing Weapon . | . . Special Melee Weapon . | . . Unidentified Prototypes . | . . Parts Lost 5 | . 5 Power 1 | . 1 Propulsion 2 | . 2 Utility 1 | . 1 Weapon 1 | . 1 Highest Loss Streak 4 | . 4 To Critical Strikes . | . . Average Backups 5 | 4 7 Power . | . 1 Propulsion 3 | 2 4 Utility . | . 1 Weapon . | . 1 Tool/Special . | . . Unused Backups 7 | 1 6 Power . | . . Propulsion 5 | 1 4 Utility 1 | . 1 Weapon 1 | . 1 Tool/Special . | . . Average Slot Usage (%) 69 | . 69 Engine 8 | . 8 Wheel 16 | . 16 Device 5 | . 5 Storage 14 | . 14 Energy Gun 14 | . 14 Ballistic Gun 8 | . 8 Peak Build Rating 7 | 7 7 Average Rating 4 | 5 4 On Entrance 3 | . 7 Avg Prop Armor Cover (%) . | . . Naked Turns . | . . Heaviest Build 15 | 15 15 Greatest Support 26 | 26 20 Greatest Overweight (x) 4 | . 4 Average Overweight (x) . | . . Largest Inventory Capacity 8 | 8 8 Average Capacity 7 | 6 8 Most Carried 7 | 7 7 Average Carried 5 | 4 7 Final Capacity 8 | 8 8 Final Carried 7 | 7 7 Class Distribution -------------------- 100% | Mutant Dominant Class ---------------- Mutant | -10/Materials Resources | -11 -10 ----------- Run | Yrd Mat Matter Collected 329 | 329 . Remotely . | . . Salvage Created 367 | 212 155 Parts 27 | 18 9 Haulers Intercepted . | . . Recyclers Shooed . | . . Parts Field Recycled . | . . Retrieved Matter . | . . Parts Self-Destructed . | . . Prevented . | . . Parts Restored . | . . Kills | -11 -10 ------- Run | Yrd Mat Combat Hostiles Destroyed 5 | . 5 AOE 5 | . 5 Classes Destroyed 5 | 3 2 Worker 2 | 2 . Tunneler 5 | 5 . Recycler 1 | 1 . Watcher 2 | . 2 Grunt 5 | . 5 Best Kill Streak 7 | 5 7 Combat Bots Only 5 | . 5 Max Kills in Single Turn 5 | 2 5 Gunslinging . | . . Exploded 3 | . 3 Melee . | . . Uniques/NPCs Destroyed . | . . Combat | -11 -10 -------- Run | Yrd Mat Hostile Shots Fired 78 | . 78 Missed 23 | . 23 Hits 55 | . 55 Projectile 55 | . 55 Critical Strikes 1 | . 1 Damage Taken 652 | . 652 Core 255 | . 255 Absorbed by Shields . | . . Core Remaining (%) 100 | 100 . Volleys Fired 16 | 13 3 Largest 2 | 2 2 Hottest 80 | 70 80 Shots Fired 32 | 26 6 Gun 29 | 26 3 Cannon . | . . Launcher 3 | . 3 Special . | . . Kinetic 13 | 13 . Thermal 16 | 13 3 Explosive 3 | . 3 Electromagnetic . | . . Robot Hit Streak 8 | 4 8 Robot Miss Streak 2 | 2 1 Penetration Max . | . . Secondary Targets . | . . Shots Hit Robots 19 | 14 5 Core Hits 19 | 9 10 Critical Kills . | . . Critical Parts Destroyed . | . . Critical Strikes 2 | 2 . Burn 2 | 2 . Melee Attacks . | . . Impact . | . . Slashing . | . . Piercing . | . . Sneak Attacks . | . . Combat Hostiles . | . . Follow-up Attacks . | . . Damage Inflicted 725 | 207 518 Guns 244 | 207 37 Cannons . | . . Explosions 481 | . 481 Melee . | . . Ramming . | . . Kinetic 67 | 67 . Thermal 177 | 140 37 Explosive 481 | . 481 Electromagnetic . | . . Impact . | . . Slashing . | . . Piercing . | . . Highest Corruption 3 | . 3 Average Corruption 2 | . 2 Corruption Purged . | . . Corruption Blocked . | . . Effects 3 | . 3 Message Errors 1 | . 1 Matter Fused 2 | . 2 Overload Shots . | . . Overflow Damage . | . . Projectiles . | . . Explosions . | . . Melee . | . . Knockbacks . | . . Impact . | . . Kinetic . | . . Secondary . | . . Self-Inflicted Damage . | . . Shots . | . . Rammed . | . . Targets Rammed . | . . Kicked . | . . Crushed . | . . Highest Temperature 72 | 72 48 Average Temperature 27 | 27 28 Received Heat Transfer 375 | . 375 Siege Activations . | . . Martial Activations . | . . Shielding Activations . | . . Robots Disrupted . | . . Combat Hostiles . | . . Robots Corrupted . | . . Combat Hostiles . | . . Parts Fried . | . . Impact Corruptions . | . . Robots Melted . | . . Combat Hostiles . | . . Parts Melted 2 | 2 . Heat Transferred 666 | 555 111 Parts Sabotaged . | . . Parts Stolen . | . . Parts Stripped . | . . Power Chain Reactions . | . . Alert | -11 -10 ------- Run | Yrd Mat Maximum Alert Level . | . . Low Security (%) 100 | 100 100 Level 1 . | . . Level 2 . | . . Level 3 . | . . Level 4 . | . . Level 5 . | . . High Security . | . . Max Security . | . . Peak Influence 120 | 15 120 Initial . | . . Average 3 | 3 4 Influence Increases 200 | 40 160 Destroy 0b10 Robot/C 100 | . 100 Destroy 0b10 Robot/NC 50 | 40 10 Destroy Leader 14 | . 14 Disable Machine 15 | . 15 Destroy Structure 6 | . 6 Lose Combat Pursuer 15 | . 15 Influence Decreases 40 | 40 . Time Decay 40 | 40 . Squads Dispatched 1 | . 1 Investigation 1 | . 1 Extermination . | . . Reinforcement . | . . Assault . | . . Garrison . | . . Intercept . | . . Searches Triggered . | . . Construction Impeded . | . . Haulers Reinforced . | . . Active Scanning Responses . | . . Cargo Convoy Interrupts . | . . Stealth | -11 -10 --------- Run | Yrd Mat Distress Signals 1 | . 1 Communications Jammed . | . . Distress Signals . | . . Times Spotted 11 | . 11 Peak Tracking Total 9 | . 9 Tactical Retreats 1 | . 1 Traps | -11 -10 ------- Run | Yrd Mat Traps Triggered 1 | . 1 Indirectly . | . . Trap Hack Attempts . | . . Triggered . | . . Disarmed . | . . Reprogrammed . | . . Reused . | . . Traps Extracted . | . . Installed . | . . Triggered . | . . Machines | -11 -10 ---------- Run | Yrd Mat Machines Disabled 1 | . 1 Max in Single Turn 1 | . 1 Machines Repaired . | . . Machines Dismantled . | . . Machines Sabotaged . | . . Overloaded Fab Kills . | . . Hacking | -11 -10 --------- Run | Yrd Mat Machines Accessed 1 | . 1 Terminals 1 | . 1 Fabricators . | . . Repair Stations . | . . Recycling Units . | . . Scanalyzers . | . . Garrison Access . | . . Total Hacks 4 | . 4 Successful . | . . Failed 4 | . 4 Catastrophic 1 | . 1 Database Lockouts . | . . Manual . | . . Terminals 4 | . 4 Fabricators . | . . Repair Stations . | . . Recycling Units . | . . Scanalyzers . | . . Garrison Access . | . . Terminal Hacks . | . . Fabricator Hacks . | . . Repair Station Hacks . | . . Recycling Unit Hacks . | . . Scanalyzer . | . . Garrison Access Hacks . | . . Unauthorized Hacks . | . . Terminals . | . . Fabricators . | . . Repair Stations . | . . Recycling Units . | . . Scanalyzers . | . . Garrison Access . | . . Data Cores Recovered . | . . Used . | . . Hacking Detections 1 | . 1 Full Trace Events 1 | . 1 Feedback Events 1 | . 1 Corruption 1 | . 1 Feedback Blocked . | . . Robot Schematics Acquired . | . . Robots Built . | . . Authchips . | . . Time . | . . Total Robot Build Rating . | . . Part Schematics Acquired . | . . Parts Built . | . . Authchips . | . . Time . | . . Total Part Build Rating . | . . Part Studies Acquired . | . . Parts Repaired . | . . Time . | . . Parts Recycled . | . . Recycled Matter . | . . Retrieved Matter . | . . Retrieved Components . | . . Parts Scanalyzed . | . . Part Schematics Acquired . | . . Parts Damaged . | . . Bothacking | -11 -10 ------------ Run | Yrd Mat Used RIF Installer . | . . Robots Hacked . | . . Non-combat . | . . Combat . | . . Robot Hacks Applied . | . . Relay Couplers Released . | . . Fabnet Peak Effective % . | . . Robots Rewired . | . . Allies Hacked . | . . Hacks Repelled . | . . Allies | -11 -10 -------- Run | Yrd Mat Total Allies . | . . Largest Group . | . . Highest-Rated Group . | . . Highest-Rated Ally . | . . Total Orders . | . . Ally Attacks . | . . Total Damage . | . . Kills . | . . Allies Corrupted . | . . Allies Melted . | . . Intel | -11 -10 ------- Run | Yrd Mat Active Infowar (turns) 83 | 24 59 Seismic 83 | 24 59 Robot Analysis Total . | . . Derelict Logs Recovered . | . . Drone Launches . | . . Drone Recoveries . | . . Exploration | -11 -10 ------------- Run | Yrd Mat Turns Passed 361 | 186 175 Spaces Moved 332 | 159 173 Core 42 | 5 37 Treads . | . . Legs . | . . Wheels 290 | 154 136 Hover . | . . Flight . | . . Fastest Speed 50 | 50 80 Average Speed 88 | 79 96 Slowest Speed 250 | 90 250 Overloaded Moves . | . . Propulsion Burnouts . | . . Robots Hopped . | . . Potential Cave-ins . | . . Cave-ins Triggered . | . . Exploration Rate (%) 17 | 3 31 Regions Visited 1 Branch Regions . Pre-discovered Areas . | . . Known Exits Taken . | . . Unknown Exits Taken 1 | 1 . Scrap Searched . | . . Spaces Dug . | . . Terrain Destroyed 6 | . 6 Melee . | . . Projectile . | . . AOE 6 | . 6 Terrain Rammed . | . . Walls Destroyed . | . . Machines Disabled . | . . Actions | -11 -10 --------- Run | Yrd Mat Total 366 | 189 177 Wait . | . . Move 331 | 158 173 Hop . | . . Pick Up 7 | 7 . Fast Attach 8 | 7 1 Attach . | . . Detach . | . . Swap 2 | 2 . Drop 2 | 2 . Fire 16 | 13 3 Melee . | . . Ram . | . . Kick . | . . Crush . | . . Escape Stasis . | . . Rewire . | . . Trap . | . . Miscellaneous . | . . Route ------- -11/Scrapyard -10/Materials History --------- Turn | Location | Event 7 | -11/Scrapyard | Discovered new exit (range 15) 187 | -11/Scrapyard | Entered Materials 302 | -10/Materials | Build established: Mutant 326 | -10/Materials | Core integrity fell below 50% 329 | -10/Materials | Lost 4 parts (1p2n1w) 355 | -10/Materials | Core integrity fell below 20% 362 | -10/Materials | Destroyed by G-47 Trooper with Particle Gun Last Messages --------------- 00298_ Wheel destroyed. 00298_ Assault Rifle destroyed. 00298_ Ion Engine destroyed. 00299_ K-01 Serf collects debris. 00299_ Critical hit (Burn: +37). 00300_ >QEYWFM1## 00302_ K-01 Serf collects debris. 00312_ U-05 Engineer builds a Door. 00319_ O-16 Technician sends out distress signal. 00319_ O-16 Technician: "IFF HANDSHAKE FAILED. SECURING TERMINAL." 00333_ K-01 Serf cleans the Material Compactor. 00339_ K-01 Serf collects debris. 00354_ Acquired Grenade Launcher. 00356_ G-34 Mercenary destroyed. 00356_ W-16 Scout destroyed. 00356_ Material Compactor disabled. 00356_ W-16 Scout destroyed. 00362_ G-34 Mercenary destroyed. Map ----- +----------------------------------------------------+ | ?????????????????????????????????????????????????? | | ?????????????????????????????????????????????????? | | ?????????????????????????????????????????????????? | | ?????????????????????????????????????????????????? | | ?????????????????????????????????????????????????? | | ?????????????????????????????????????????????????? | | ?????????????????????????????????????????????????? | | ?????????????????????????????????????????????????? | | ?????????????????????????????????????????????????? | | ?????????????????????????????????????????????????? | | ?????????????????????????????????????????????????? | | ?????????????????????????????????????????????????? | | ?????????????????????????????????????????????????? | | ????????????????"????????????????????????????????? | | ????????????????" ????????????????????????????? | | ??????????????""" ????????????????????????????? | | ????????????? ????????????????????????????? | | ???????????? #????### ???????????????????? | | ????????????# ^ #???? ????????????????????? | | ????????????# ##### #????????????????????? | | ????????????# #????????????????????? | | ????????????# #????????????????????? | | ????????????# #????????????????????? | | ????????????# """ #????????????????????? | | ????????????# """"" w #????????????????????? | | ?? ?????????# " " r ]@ #????????????????????? | | ?? ######## " " ]] #????????????????????? | | ? #????????????????????? | | ? = % #????????????????????? | | ? %%=* | #????????????????????? | | ? %g= ##+######????????????????????? | | ?????######## ?? ?????????????????????????? | | ????????????# #?? ""?????????????????????????? | | ????????????# #?? """????????????????????????? | | ????????????# #?# """????????????????????????? | | ???????????## ### ???????????????????????? | | ########???# ###########?????????????????????? | | /// #???# " #?????????????????????? | | /// #???# "T #?????????????????????? | | /// #???# !!! #?????????????????????? | | #???# ##!!! ! #?????????????????????? | | #???########!! #?????????????????????? | | ! #??#######?# #?????????????????????? | | #??# ### #?????????????????????? | | #??# """ + !* #?????????????????????? | | ##+######## """ # !* #?????????????????????? | | # """ # !* #?????????????????????? | | # # ########?????????????????????? | | [[! # """ # #????????????????????????????? | | [!! # """ # #????????????????????????????? | +----------------------------------------------------+ Best States ------------- Heat Dissipation 25 Energy Generation 10 Energy Capacity 250 Matter Stores 300 Matter Capacity 300 Sight Range 16 Terrain Scan Density 10 Evasion (%) 44 Item Schematics ----------------- None Robot Schematics ------------------ None Fabricated ------------ Nothing Repaired ---------- Nothing Studied --------- None Alien Tech Used ----------------- None Achievements -------------- None Challenges ------------ None Game ------ Seed SkeletonEnergyCharger Manual? 0 Play Time 00:03:46 Cumulative 173.2 hours Start 2026.08.25 @ 18:21:25 End 2026.08.25 @ 18:33:26 Sessions 2 Manual Loads 0 Difficulty Rogue Special Mode None Game No. 344 Rogue 344 Adventurer 0 Explorer 0 Win Type - Total 2 Types 2/0/0/0/0/0/0/0/0/0 Lore% 57 Gallery% 59 Achievement% 45 Wizard Run 0 Options --------- Layout 2 ASCII 0 Keyboard 1 Movement Arrows Keybinds 0 Fullscreen 1 Font 24/Smallcaps Map View 50x44 Zoom Use 0% Tactical HUD 1 Map Filters NONE Filters NONE Steam 1 RUN: 6f46877b-8d40-4054-ac7e-ed5667ac697d